fUSD/lending_fUSD_20240719
["ID","MTS","AMOUNT","RATE_DAILY","PERIOD"]
[332626899,1721374265994,-1000.0,0.00032876,30]
[332626900,1721374266003,-1000.0,0.00032876,30]
[332626901,1721374266012,-1000.0,0.00032876,30]
[332626902,1721374266022,-1000.0,0.00032876,30]
[332626903,1721374266031,-1000.0,0.00032876,30]
[332626904,1721374266044,-1000.0,0.00032876,30]
[332626905,1721374266054,-1000.0,0.00032876,30]
[332626906,1721374266065,-1000.0,0.00032876,30]
[332626907,1721374266076,-1000.0,0.00032876,30]
[332626908,1721374266087,-931.87939404,0.00032876,30]
[332626909,1721374266096,-729.12,0.00032876,14]
[332626910,1721374266107,-500.0,0.00032876,14]
[332626911,1721374266122,-202.89380282,0.00032876,14]
[332626912,1721374266134,-500.0,0.00032876,14]
[332626913,1721374266145,-500.0,0.00032876,14]
[332626914,1721374266157,-500.0,0.00032876,14]
[332626915,1721374266167,-507.18603767,0.00032876,14]
[332626916,1721374266178,-501.45939626,0.00032876,14]
[332626917,1721374266190,-255.32632938,0.00032876,14]
[332626918,1721374266200,-500.0,0.00032876,14]
[332626919,1721374266211,-500.0,0.00032876,14]
[332626920,1721374266220,-500.0,0.00032876,14]
[332626921,1721374266228,-500.0,0.00032876,14]
[332626922,1721374266238,-500.0,0.00032876,14]
[332626923,1721374266247,-500.38867108,0.00032876,14]
[332626924,1721374266259,-500.0,0.00032876,14]
[332626925,1721374266268,-500.0,0.00032876,14]
[332626926,1721374266278,-964.89,0.00032876,14]
[332626927,1721374266287,-500.0,0.00032876,14]
[332626928,1721374266297,-500.0,0.00032876,14]
[332626929,1721374266307,-500.0,0.00032876,14]
[332626930,1721374266317,-500.0,0.00032876,14]
[332626931,1721374266329,-631.47202755,0.00032876,14]
[332626932,1721374266339,-296.28070597,0.00032876,14]
[332626933,1721374266349,-500.0,0.00032876,14]
[332626934,1721374266358,-500.0,0.00032876,14]
[332626935,1721374266369,-1397.42,0.00032876,14]
[332626936,1721374266381,-507.4,0.00032876,14]
[332626937,1721374266391,-500.0,0.00032876,14]
[332626938,1721374266401,-500.0,0.00032876,14]
[332626939,1721374266412,-500.0,0.00032876,14]
[332626940,1721374266422,-500.0,0.00032876,14]
[332626941,1721374266433,-500.0,0.00032876,14]
[332626942,1721374266443,-500.0,0.00032876,14]
[332626943,1721374266452,-1273.65,0.00032876,14]
[332626944,1721374266462,-500.0,0.00032876,14]
[332626945,1721374266471,-500.0,0.00032876,14]
[332626946,1721374266480,-500.0,0.00032876,14]
[332626947,1721374266490,-500.0,0.00032876,14]
[332626948,1721374266499,-500.0,0.00032876,14]
[332626949,1721374266509,-500.0,0.00032876,14]
[332626950,1721374266519,-359.18669634,0.00032876,14]
[332626951,1721374266528,-500.0,0.00032876,14]
[332626952,1721374266537,-500.0,0.00032876,14]
[332626953,1721374266547,-500.0,0.00032876,14]
[332626954,1721374266556,-500.0,0.00032876,14]
[332626955,1721374266565,-500.0,0.00032876,14]
[332626956,1721374266575,-792.24,0.00032876,14]
[332626957,1721374266584,-1123.54,0.00032876,14]
[332626958,1721374266594,-500.0,0.00032876,14]
[332626959,1721374266604,-2002.14,0.00032876,14]
[332626960,1721374266613,-500.0,0.00032876,14]
[332626961,1721374266622,-734.79,0.00032876,14]
[332626962,1721374266631,-500.0,0.00032876,14]
[332626963,1721374266641,-525.59,0.00032876,14]
[332626964,1721374266650,-500.0,0.00032876,14]
[332626965,1721374266659,-500.0,0.00032876,14]
[332626966,1721374266668,-500.0,0.00032876,14]
[332626967,1721374266678,-501.79607601,0.00032876,14]
[332626968,1721374266687,-709.12,0.00032876,14]
[332626969,1721374266696,-615.05525612,0.00032876,2]
[332626970,1721374266706,-500.0,0.00032876,14]
[332626971,1721374266716,-500.0,0.00032876,14]
[332626972,1721374266725,-501.78860763,0.00032876,14]
[332626973,1721374266734,-500.0,0.00032876,14]
[332626974,1721374266743,-510.73456754,0.00032876,14]
[332626975,1721374266753,-500.0,0.00032876,14]
[332626976,1721374266762,-500.0,0.00032876,14]
[332626977,1721374266771,-500.0,0.00032876,14]
[332626978,1721374266781,-1118.74,0.00032876,14]
[332626979,1721374266790,-500.0,0.00032876,14]
[332626980,1721374266799,-501.76021871,0.00032876,14]
[332626981,1721374266808,-500.0,0.00032876,14]
[332626982,1721374266817,-500.0,0.00032876,14]
[332626983,1721374266827,-500.0,0.00032876,14]
[332626984,1721374266836,-501.80309332,0.00032876,14]
[332626985,1721374266846,-500.0,0.00032876,14]
[332626986,1721374266855,-500.0,0.00032876,14]
[332626987,1721374266864,-500.0,0.00032876,14]
[332626988,1721374266873,-1718.26,0.00032876,14]
[332626989,1721374267069,-500.0,0.00032876,14]
[332626990,1721374267079,-500.0,0.00032876,14]
[332626991,1721374267089,-500.0,0.00032876,14]
[332626992,1721374267099,-853.38,0.00032876,14]
[332626993,1721374267108,-1130.69,0.00032876,14]
[332626994,1721374267120,-500.0,0.00032876,14]
[332626995,1721374267131,-500.0,0.00032876,14]
[332626996,1721374267140,-500.0,0.00032876,14]
[332626997,1721374267150,-501.56478549,0.00032876,14]
[332626998,1721374267159,-645.84246753,0.00032876,14]
[332626999,1721374267169,-500.0,0.00032876,2]
[332627000,1721374267179,-500.0,0.00032876,14]
[332627001,1721374267189,-500.0,0.00032876,14]
[332627002,1721374267199,-601.15097938,0.00032876,14]
[332627003,1721374267208,-500.0,0.00032876,14]
[332627004,1721374267217,-500.0,0.00032876,14]
[332627005,1721374267227,-955.27,0.00032876,14]
[332627006,1721374267235,-500.0,0.00032876,14]
[332627007,1721374267245,-501.20823566,0.00032876,14]
[332627008,1721374267255,-647.66,0.00032876,14]
[332627009,1721374267264,-500.0,0.00032876,14]
[332627010,1721374267274,-500.0,0.00032876,14]
[332627011,1721374267283,-351.39294365,0.00032876,14]
[332627012,1721374267292,-500.0,0.00032876,14]
[332627013,1721374267302,-1107.57,0.00032876,14]
[332627014,1721374267311,-500.75332427,0.00032876,14]
[332627015,1721374267321,-500.0,0.00032876,14]
[332627016,1721374267330,-500.0,0.00032876,14]
[332627017,1721374267339,-501.78024887,0.00032876,14]
[332627018,1721374267349,-500.0,0.00032876,14]
[332627019,1721374267358,-500.0,0.00032876,14]
[332627020,1721374267368,-500.89460385,0.00032876,14]
[332627021,1721374267377,-500.0,0.00032876,14]
[332627022,1721374267387,-500.0,0.00032876,14]
[332627023,1721374267398,-500.0,0.00032876,14]
[332627024,1721374267407,-500.0,0.00032876,14]
[332627025,1721374267417,-500.0,0.00032876,14]
[332627026,1721374267426,-500.0,0.00032876,14]
[332627027,1721374267436,-500.0,0.00032876,14]
[332627028,1721374267445,-500.0,0.00032876,14]
[332627029,1721374267454,-546.29,0.00032876,14]
[332627030,1721374267464,-500.0,0.00032876,14]
[332627031,1721374267473,-500.0,0.00032876,14]
[332627032,1721374267483,-500.0,0.00032876,14]
[332627033,1721374267492,-500.0,0.00032876,14]
[332627034,1721374267502,-500.0,0.00032876,14]
[332627035,1721374267511,-500.0,0.00032876,14]
[332627036,1721374267520,-500.0,0.00032876,14]
[332627037,1721374267530,-898.82,0.00032876,14]
[332627038,1721374267539,-500.67289643,0.00032876,14]
[332627039,1721374267548,-500.0,0.00032876,14]
[332627040,1721374267558,-500.0,0.00032876,14]
[332627041,1721374267567,-500.0,0.00032876,14]
[332627042,1721374267576,-500.0,0.00032876,14]
[332627043,1721374267586,-500.0,0.00032876,14]
[332627044,1721374267598,-500.0,0.00032876,14]
[332627045,1721374267608,-500.0,0.00032876,14]
[332627046,1721374267617,-500.0,0.00032876,14]
[332627047,1721374267630,-500.0,0.00032876,14]
[332627048,1721374267639,-500.0,0.00032876,14]
[332627049,1721374267649,-500.0,0.00032876,14]
[332627050,1721374267658,-500.0,0.00032876,14]
[332627051,1721374267667,-500.0,0.00032876,14]
[332627052,1721374267677,-500.0,0.00032876,14]
[332627053,1721374267686,-500.0,0.00032876,14]
[332627054,1721374267696,-357.31137284,0.00032876,14]
[332627055,1721374267705,-500.0,0.00032876,14]
[332627056,1721374267714,-500.0,0.00032876,14]
[332627057,1721374267723,-500.0,0.00032876,14]
[332627058,1721374267733,-370.98077346,0.00032876,14]
[332627059,1721374267742,-500.0,0.00032876,14]
[332627060,1721374267751,-500.0,0.00032876,14]
[332627061,1721374267760,-500.0,0.00032876,14]
[332627062,1721374267769,-500.0,0.00032876,14]
[332627063,1721374267779,-500.0,0.00032876,14]
[332627064,1721374267788,-500.0,0.00032876,14]
[332627065,1721374267797,-500.0,0.00032876,14]
[332627066,1721374267806,-500.0,0.00032876,14]
[332627067,1721374267816,-593.12,0.00032876,14]
[332627068,1721374267825,-500.0,0.00032876,14]
[332627069,1721374267835,-500.0,0.00032876,14]
[332627070,1721374267846,-504.93749525,0.00032876,14]
[332627071,1721374267855,-500.0,0.00032876,14]
[332627072,1721374267865,-500.0,0.00032876,14]
[332627073,1721374267874,-500.0,0.00032876,14]
[332627074,1721374267883,-500.0,0.00032876,14]
[332627075,1721374267893,-500.0,0.00032876,14]
[332627076,1721374267902,-500.0,0.00032876,14]
[332627077,1721374267911,-500.0,0.00032876,14]
[332627078,1721374267922,-500.0,0.00032876,14]
[332627079,1721374267931,-1267.66,0.00032876,14]
[332627080,1721374267941,-1004.15,0.00032876,14]
[332627081,1721374267950,-500.0,0.00032876,14]
[332627082,1721374267959,-500.0,0.00032876,14]
[332627083,1721374267968,-500.0,0.00032876,14]
[332627084,1721374267977,-500.0,0.00032876,14]
[332627085,1721374267987,-345.36259127,0.00032876,14]
[332627086,1721374267996,-500.0,0.00032876,14]
[332627087,1721374268005,-500.0,0.00032876,14]
[332627088,1721374268015,-500.0,0.00032876,14]
[332627089,1721374268024,-500.0,0.00032876,14]
[332627090,1721374268032,-500.0,0.00032876,14]
[332627091,1721374268044,-500.0,0.00032876,14]
[332627092,1721374268053,-500.0,0.00032876,14]
[332627093,1721374268063,-500.0,0.00032876,14]
[332627094,1721374268072,-500.0,0.00032876,14]
[332627095,1721374268081,-500.0,0.00032876,14]
[332627096,1721374268092,-500.0,0.00032876,14]
[332627097,1721374268102,-500.0,0.00032876,14]
[332627098,1721374268112,-500.0,0.00032876,14]
[332627099,1721374268124,-500.0,0.00032876,14]
[332627100,1721374268133,-500.0,0.00032876,14]
[332627101,1721374268143,-500.0,0.00032876,14]
[332627102,1721374268152,-500.0,0.00032876,14]
[332627103,1721374268162,-500.0,0.00032876,14]
[332627104,1721374268171,-510.57499145,0.00032876,14]
[332627105,1721374268181,-500.0,0.00032876,14]
[332627106,1721374268191,-533.61891375,0.00032876,14]
[332627107,1721374268204,-500.0,0.00032876,14]
[332627108,1721374268213,-500.0,0.00032876,14]
[332627109,1721374268224,-500.0,0.00032876,14]
[332627110,1721374268233,-500.0,0.00032876,14]
[332627111,1721374268243,-500.0,0.00032876,14]
[332627112,1721374268252,-500.0,0.00032876,14]
[332627113,1721374268262,-500.0,0.00032876,14]
[332627114,1721374268271,-500.0,0.00032876,14]
[332627115,1721374268280,-500.0,0.00032876,14]
[332627116,1721374268290,-500.0,0.00032876,14]
[332627117,1721374268300,-524.96,0.00032876,14]
[332627118,1721374268310,-672.0,0.00032876,14]
[332627119,1721374268319,-500.0,0.00032876,14]
[332627120,1721374268329,-1604.34,0.00032876,14]
[332627121,1721374268338,-500.0,0.00032876,14]
[332627122,1721374268348,-500.0,0.00032876,14]
[332627123,1721374268358,-500.0,0.00032876,14]
[332627124,1721374268368,-500.0,0.00032876,14]
[332627125,1721374268377,-500.0,0.00032876,14]
[332627126,1721374268386,-500.0,0.00032876,14]
[332627127,1721374268397,-2684.0,0.00032876,14]
[332627128,1721374268406,-500.0,0.00032876,14]
[332627129,1721374268416,-500.0,0.00032876,14]
[332627130,1721374268425,-500.0,0.00032876,14]
[332627131,1721374268434,-500.0,0.00032876,14]
[332627132,1721374268444,-501.017404,0.00032876,14]
[332627133,1721374268453,-1411.78,0.00032876,14]
[332627134,1721374268463,-1463.92,0.00032876,14]
[332627135,1721374268472,-500.0,0.00032876,14]
[332627136,1721374268482,-500.0,0.00032876,14]
[332627137,1721374268492,-500.0,0.00032876,14]
[332627138,1721374268501,-501.42256999,0.00032876,14]
[332627139,1721374268511,-500.0,0.00032876,14]
[332627140,1721374268521,-500.0,0.00032876,14]
[332627141,1721374268531,-500.0,0.00032876,14]
[332627142,1721374268541,-501.268059,0.00032876,14]
[332627143,1721374268550,-500.0,0.00032876,14]
[332627144,1721374268560,-858.0,0.00032876,14]
[332627145,1721374268569,-500.0,0.00032876,14]
[332627146,1721374268579,-500.0,0.00032876,2]
[332627147,1721374268589,-500.0,0.00032876,14]
[332627148,1721374268600,-502.13975348,0.00032876,14]
[332627149,1721374268609,-500.0,0.00032876,14]
[332627150,1721374268619,-1259.18,0.00032876,14]
[332627151,1721374268628,-500.0,0.00032876,14]
[332627152,1721374268638,-500.0,0.00032876,14]
[332627153,1721374268647,-500.0,0.00032876,14]
[332627154,1721374268657,-501.1096584,0.00032876,14]
[332627155,1721374268666,-500.0,0.00032876,14]
[332627156,1721374268676,-500.0,0.00032876,14]
[332627157,1721374268686,-500.0,0.00032876,14]
[332627158,1721374268696,-500.0,0.00032876,14]
[332627159,1721374268706,-500.0,0.00032876,14]
[332627160,1721374268715,-501.72449578,0.00032876,14]
[332627161,1721374268725,-500.0,0.00032876,14]
[332627162,1721374268734,-500.0,0.00032876,14]
[332627163,1721374268744,-244.57285995,0.00032876,14]
[332627164,1721374268754,-500.0,0.00032876,14]
[332627165,1721374268763,-271.79493575,0.00032876,14]
[332627166,1721374268773,-500.0,0.00032876,14]
[332627167,1721374268783,-500.0,0.00032876,14]
[332627168,1721374268792,-500.0,0.00032876,14]
[332627169,1721374268802,-928.26,0.00032876,14]
[332627170,1721374268812,-781.23,0.00032876,14]
[332627171,1721374268822,-500.0,0.00032876,14]
[332627172,1721374268832,-860.86,0.00032876,14]
[332627173,1721374268843,-500.0,0.00032876,14]
[332627174,1721374268852,-500.0,0.00032876,14]
[332627175,1721374268861,-756.27,0.00032876,14]
[332627176,1721374268870,-500.0,0.00032876,14]
[332627177,1721374268880,-500.0,0.00032876,14]
[332627178,1721374268890,-585.18612194,0.00032876,14]
[332627179,1721374268900,-840.95,0.00032876,14]
[332627180,1721374268909,-579.58,0.00032876,14]
[332627181,1721374268919,-3829.75,0.00032876,14]
[332627182,1721374268929,-513.72474093,0.00032876,14]
[332627183,1721374268938,-500.0,0.00032876,14]
[332627184,1721374268948,-500.0,0.00032876,14]
[332627185,1721374268958,-500.0,0.00032876,14]
[332627186,1721374268968,-992.53,0.00032876,14]
[332627187,1721374268978,-500.0,0.00032876,14]
[332627188,1721374268988,-512.29,0.00032876,14]
[332627189,1721374268998,-500.0,0.00032876,14]
[332627190,1721374269007,-500.0,0.00032876,14]
[332627191,1721374269017,-501.90535153,0.00032876,14]
[332627192,1721374269027,-500.0,0.00032876,14]
[332627193,1721374269037,-500.0,0.00032876,14]
[332627194,1721374269047,-427.74881668,0.00032876,14]
[332627195,1721374269057,-500.0,0.00032876,14]
[332627196,1721374269067,-500.0,0.00032876,14]
[332627197,1721374269076,-500.0,0.00032876,14]
[332627198,1721374269085,-500.0,0.00032876,14]
[332627199,1721374269096,-1957.81,0.00032876,14]
[332627200,1721374269105,-500.0,0.00032876,14]
[332627201,1721374269118,-501.0249298,0.00032876,14]
[332627202,1721374269127,-1687.45,0.00032876,14]
[332627203,1721374269138,-500.0,0.00032876,14]
[332627204,1721374269147,-500.0,0.00032876,14]
[332627205,1721374269157,-500.0,0.00032876,14]
[332627206,1721374269166,-554.18,0.00032876,14]
[332627207,1721374269176,-500.0,0.00032876,14]
[332627209,1721374269185,-500.0,0.00032876,14]
[332627210,1721374269194,-2139.51,0.00032876,14]
[332627211,1721374269204,-500.0,0.00032876,14]
[332627212,1721374269213,-3678.46,0.00032876,14]
[332627213,1721374269223,-500.0,0.00032876,14]
[332627214,1721374269232,-500.0,0.00032876,14]
[332627215,1721374269242,-500.0,0.00032876,14]
[332627216,1721374269251,-1102.24,0.00032876,14]
[332627217,1721374269261,-500.0,0.00032876,14]
[332627218,1721374269271,-500.0,0.00032876,14]
[332627219,1721374269282,-500.0,0.00032876,14]
[332627220,1721374269291,-500.0,0.00032876,14]
[332627221,1721374269301,-500.0,0.00032876,14]
[332627222,1721374269311,-500.0,0.00032876,14]
[332627223,1721374269320,-2659.19,0.00032876,14]
[332627224,1721374269330,-500.0,0.00032876,14]
[332627225,1721374269339,-500.0,0.00032876,14]
[332627226,1721374269349,-500.0,0.00032876,14]
[332627227,1721374269359,-500.0,0.00032876,14]
[332627228,1721374269369,-500.0,0.00032876,14]
[332627229,1721374269379,-500.0,0.00032876,14]
[332627230,1721374269389,-500.0,0.00032876,14]
[332627231,1721374269398,-748.36,0.00032876,14]
[332627232,1721374269409,-500.0,0.00032876,14]
[332627233,1721374269418,-500.0,0.00032876,14]
[332627234,1721374269428,-500.0,0.00032876,14]
[332627235,1721374269439,-519.79292893,0.00032876,14]
[332627236,1721374269447,-500.0,0.00032876,14]
[332627237,1721374269456,-500.0,0.00032876,14]
[332627238,1721374269466,-500.0,0.00032876,14]
[332627239,1721374269476,-500.0,0.00032876,14]
[332627240,1721374269485,-500.0,0.00032876,14]
[332627241,1721374269495,-1342.76,0.00032876,14]
[332627242,1721374269505,-501.93452082,0.00032876,14]
[332627243,1721374269515,-500.0,0.00032876,14]
[332627244,1721374269524,-1446.86,0.00032876,14]
[332627245,1721374269534,-2318.73,0.00032876,14]
[332627246,1721374269544,-500.0,0.00032876,14]
[332627247,1721374269554,-502.20685322,0.00032876,14]
[332627248,1721374269564,-500.0,0.00032876,14]
[332627249,1721374269574,-500.0,0.00032876,14]
[332627250,1721374269584,-500.0,0.00032876,14]
[332627251,1721374269594,-500.0,0.00032876,14]
[332627252,1721374269604,-968.02,0.00032876,14]
[332627253,1721374269614,-500.0,0.00032876,14]
[332627254,1721374269624,-500.0,0.00032876,14]
[332627255,1721374269634,-500.0,0.00032876,14]
[332627256,1721374269643,-500.0,0.00032876,14]
[332627257,1721374269653,-1804.42,0.00032876,14]
[332627258,1721374269662,-500.0,0.00032876,14]
[332627259,1721374269672,-500.0,0.00032876,14]
[332627260,1721374269682,-500.0,0.00032876,14]
[332627261,1721374269691,-501.49432755,0.00032876,14]
[332627262,1721374269700,-1215.42,0.00032876,14]
[332627263,1721374269710,-500.0,0.00032876,14]
[332627264,1721374269719,-500.0,0.00032876,14]
[332627265,1721374269728,-500.0,0.00032876,14]
[332627266,1721374269738,-500.0,0.00032876,14]
[332627267,1721374269747,-500.0,0.00032876,14]
[332627268,1721374269756,-1189.06,0.00032876,14]
[332627269,1721374269766,-500.0,0.00032876,14]
[332627270,1721374269776,-2711.43,0.00032876,14]
[332627271,1721374269785,-500.0,0.00032876,14]
[332627272,1721374269794,-500.0,0.00032876,14]
[332627273,1721374269804,-500.0,0.00032876,14]
[332627274,1721374270002,-500.0,0.00032876,14]
[332627275,1721374270013,-501.70547602,0.00032876,14]
[332627276,1721374270022,-501.31589909,0.00032876,14]
[332627277,1721374270032,-500.0,0.00032876,14]
[332627278,1721374270042,-717.63,0.00032876,14]
[332627279,1721374270052,-501.14340421,0.00032876,14]
[332627280,1721374270063,-500.0,0.00032876,14]
[332627281,1721374270073,-591.06,0.00032876,14]
[332627282,1721374270082,-952.61,0.00032876,14]
[332627283,1721374270093,-500.0,0.00032876,14]
[332627284,1721374270102,-2016.29,0.00032876,14]
[332627285,1721374270114,-500.0,0.00032876,14]
[332627286,1721374270125,-500.0,0.00032876,14]
[332627287,1721374270135,-500.0,0.00032876,14]
[332627288,1721374270145,-500.9152756,0.00032876,14]
[332627289,1721374270155,-500.0,0.00032876,14]
[332627290,1721374270165,-500.0,0.00032876,14]
[332627291,1721374270175,-837.41,0.00032876,14]
[332627292,1721374270184,-501.94977917,0.00032876,14]
[332627293,1721374270195,-500.0,0.00032876,14]
[332627294,1721374270206,-517.97,0.00032876,14]
[332627295,1721374270216,-1315.92,0.00032876,14]
[332627296,1721374270225,-501.34612513,0.00032876,14]
[332627297,1721374270236,-500.0,0.00032876,14]
[332627298,1721374270245,-1189.37,0.00032876,14]
[332627299,1721374270255,-500.0,0.00032876,14]
[332627300,1721374270264,-500.0,0.00032876,14]
[332627301,1721374270274,-500.0,0.00032876,14]
[332627302,1721374270283,-501.45179932,0.00032876,14]
[332627303,1721374270293,-787.01,0.00032876,14]
[332627304,1721374270303,-500.0,0.00032876,14]
[332627305,1721374270313,-853.41,0.00032876,14]
[332627306,1721374270323,-500.0,0.00032876,14]
[332627307,1721374270332,-500.0,0.00032876,14]
[332627308,1721374270342,-500.0,0.00032876,14]
[332627309,1721374270352,-500.0,0.00032876,14]
[332627310,1721374270362,-500.0,0.00032876,14]
[332627311,1721374270372,-500.0,0.00032876,14]
[332627312,1721374270381,-500.0,0.00032876,14]
[332627313,1721374270390,-500.0,0.00032876,14]
[332627314,1721374270400,-618.57,0.00032876,14]
[332627315,1721374270411,-922.88,0.00032876,14]
[332627316,1721374270421,-500.0,0.00032876,14]
[332627317,1721374270431,-500.0,0.00032876,14]
[332627318,1721374270440,-500.0,0.00032876,14]
[332627319,1721374270450,-500.96095824,0.00032876,14]
[332627320,1721374270461,-500.0,0.00032876,14]
[332627321,1721374270471,-1426.93,0.00032876,14]
[332627322,1721374270481,-500.0,0.00032876,14]
[332627323,1721374270490,-500.0,0.00032876,14]
[332627324,1721374270500,-2121.44,0.00032876,14]
[332627325,1721374270509,-1492.61,0.00032876,14]
[332627326,1721374270519,-2060.02,0.00032876,14]
[332627327,1721374270529,-494.27568514,0.00032876,14]
[332627328,1721374270539,-500.0,0.00032876,14]
[332627329,1721374270548,-1270.35,0.00032876,14]
[332627330,1721374270558,-500.0,0.00032876,14]
[332627331,1721374270568,-500.0,0.00032876,14]
[332627332,1721374270578,-1782.26,0.00032876,14]
[332627333,1721374270587,-500.0,0.00032876,14]
[332627334,1721374270598,-3015.1,0.00032876,14]
[332627335,1721374270608,-500.0,0.00032876,14]
[332627336,1721374270617,-500.0,0.00032876,14]
[332627337,1721374270627,-500.0,0.00032876,14]
[332627338,1721374270636,-1363.34,0.00032876,14]
[332627339,1721374270645,-942.62,0.00032876,14]
[332627340,1721374270655,-500.0,0.00032876,14]
[332627341,1721374270664,-1188.43,0.00032876,14]
[332627342,1721374270674,-500.0,0.00032876,14]
[332627343,1721374270683,-500.0,0.00032876,14]
[332627344,1721374270694,-500.0,0.00032876,14]
[332627345,1721374270703,-500.0,0.00032876,14]
[332627346,1721374270713,-500.0,0.00032876,14]
[332627347,1721374270722,-2312.04,0.00032876,14]
[332627348,1721374270731,-500.0,0.00032876,14]
[332627349,1721374270741,-500.0,0.00032876,14]
[332627350,1721374270751,-768.63,0.00032876,14]
[332627351,1721374270761,-500.0,0.00032876,14]
[332627352,1721374270770,-500.0,0.00032876,14]
[332627353,1721374270780,-500.0,0.00032876,14]
[332627354,1721374270790,-569.91,0.00032876,14]
[332627355,1721374270800,-500.0,0.00032876,14]
[332627356,1721374270810,-500.0,0.00032876,14]
[332627357,1721374270819,-500.0,0.00032876,14]
[332627358,1721374270829,-500.0,0.00032876,14]
[332627359,1721374270838,-500.0,0.00032876,14]
[332627360,1721374270849,-502.82047491,0.00032876,14]
[332627361,1721374270860,-500.0,0.00032876,14]
[332627362,1721374270870,-1535.53,0.00032876,14]
[332627363,1721374270879,-829.12,0.00032876,14]
[332627364,1721374270889,-500.0,0.00032876,14]
[332627365,1721374270898,-3290.05,0.00032876,14]
[332627366,1721374270908,-1425.08,0.00032876,14]
[332627367,1721374270918,-500.0,0.00032876,14]
[332627368,1721374270928,-551.24076983,0.00032876,14]
[332627369,1721374270938,-500.0,0.00032876,14]
[332627370,1721374270947,-500.0,0.00032876,14]
[332627371,1721374270958,-785.93,0.00032876,14]
[332627372,1721374270968,-728.38,0.00032876,14]
[332627373,1721374270980,-501.82112554,0.00032876,14]
[332627374,1721374270990,-500.0,0.00032876,14]
[332627375,1721374270999,-500.0,0.00032876,14]
[332627376,1721374271009,-500.0,0.00032876,14]
[332627377,1721374271019,-500.0,0.00032876,14]
[332627378,1721374271029,-500.0,0.00032876,14]
[332627379,1721374271039,-500.52349836,0.00032876,14]
[332627380,1721374271049,-918.05,0.00032876,14]
[332627381,1721374271058,-500.0,0.00032876,14]
[332627382,1721374271068,-1257.94,0.00032876,14]
[332627383,1721374271078,-500.0,0.00032876,14]
[332627384,1721374271087,-2459.5,0.00032876,14]
[332627385,1721374271098,-454.5013644,0.00032876,14]
[332627386,1721374271108,-500.0,0.00032876,14]
[332627387,1721374271118,-500.0,0.00032876,14]
[332627388,1721374271129,-500.0,0.00032876,14]
[332627389,1721374271139,-500.0,0.00032876,14]
[332627390,1721374271148,-500.0,0.00032876,14]
[332627391,1721374271157,-500.0,0.00032876,14]
[332627392,1721374271167,-500.0,0.00032876,14]
[332627393,1721374271177,-798.81,0.00032876,14]
[332627394,1721374271187,-501.66309184,0.00032876,14]
[332627395,1721374271197,-211.09161709,0.00032876,14]
[332627396,1721374271207,-500.0,0.00032876,14]
[332627397,1721374271217,-500.0,0.00032876,14]
[332627398,1721374271226,-742.79,0.00032876,14]
[332627399,1721374271235,-500.0,0.00032876,14]